[Event "Titled Tuesday Blitz December 27 Early 2022"]
[White "Herman, Daniel"]
[Black "Buscar, Michael"]
[WhiteFideId "30935008"]
[BlackFideId "2603616"]
[WhiteElo "1956"]
[BlackElo "2041"]
[Result "1-0"]
[Round "10"]
[TimeControl "180+2"]
[Date "2022.12.27"]
[WhiteClock "0:00:18"]
[BlackClock "0:00:40"]

1. c4 {[%clk 0:03:00]}  Nf6 {[%clk 0:02:51]} 2. Nc3 {[%clk 0:03:00]}  e6 {[%clk 0:02:50]} 3. e4 {[%clk 0:03:00]}  c5 {[%clk 0:02:50]} 4. Nf3 {[%clk 0:02:57]}  a6 {[%clk 0:02:49]} 5. d4 {[%clk 0:02:56]}  cxd4 {[%clk 0:02:49]} 6. Nxd4 {[%clk 0:02:56]}  Qc7 {[%clk 0:02:46]} 7. Bd3 {[%clk 0:02:49]}  Bd6 {[%clk 0:02:40]} 8. g3 {[%clk 0:02:39]}  Nc6 {[%clk 0:02:37]} 9. Nxc6 {[%clk 0:02:22]}  bxc6 {[%clk 0:02:33]} 10. Be3 {[%clk 0:02:15]}  e5 {[%clk 0:02:29]} 11. c5 {[%clk 0:02:12]}  Be7 {[%clk 0:02:28]} 12. O-O {[%clk 0:02:05]}  O-O {[%clk 0:02:28]} 13. f4 {[%clk 0:02:00]}  exf4 {[%clk 0:02:26]} 14. gxf4 {[%clk 0:01:58]}  d6 {[%clk 0:02:16]} 15. cxd6 {[%clk 0:01:58]}  Bxd6 {[%clk 0:02:14]} 16. e5 {[%clk 0:01:57]}  Bxe5 {[%clk 0:02:14]} 17. fxe5 {[%clk 0:01:58]}  Qxe5 {[%clk 0:02:14]} 18. Qf3 {[%clk 0:01:53]}  Rb8 {[%clk 0:02:07]} 19. Bf4 {[%clk 0:01:51]}  Qd4+ {[%clk 0:02:00]} 20. Qf2 {[%clk 0:01:51]}  Qxd3 {[%clk 0:02:00]} 21. Bxb8 {[%clk 0:01:49]}  Bh3 {[%clk 0:01:57]} 22. Rfd1 {[%clk 0:01:43]}  Qg6+ {[%clk 0:01:55]} 23. Bg3 {[%clk 0:01:38]}  Ng4 {[%clk 0:01:55]} 24. Qd4 {[%clk 0:01:28]}  h5 {[%clk 0:01:52]} 25. Qe4 {[%clk 0:01:25]}  Qf6 {[%clk 0:01:45]} 26. Rd6 {[%clk 0:01:23]}  Qg5 {[%clk 0:01:43]} 27. Rxc6 {[%clk 0:00:58]}  h4 {[%clk 0:01:39]} 28. Bf4 {[%clk 0:00:58]}  Qa5 {[%clk 0:01:25]} 29. Qf3 {[%clk 0:00:48]}  Qb4 {[%clk 0:01:18]} 30. Qxh3 {[%clk 0:00:33]}  Qxf4 {[%clk 0:01:16]} 31. Rf1 {[%clk 0:00:27]}  Qg5 {[%clk 0:01:00]} 32. Qg2 {[%clk 0:00:24]}  Qh5 {[%clk 0:00:50]} 33. Qd5 {[%clk 0:00:20]}  Qh7 {[%clk 0:00:45]} 34. Ne4 {[%clk 0:00:19]}  Ne3 {[%clk 0:00:44]} 35. Qxf7+ {[%clk 0:00:17]}  Rxf7 {[%clk 0:00:40]} 36. Rc8+ {[%clk 0:00:17]}  Rf8 {[%clk 0:00:40]} 37. Rcxf8# {[%clk 0:00:18]} 1-0


[Site "https://www.chess.com"]

[Event "Titled Tuesday Blitz December 27 Early 2022"]
[White "Iljin, Timofey"]
[Black "Jimenez, Joaquin"]
[WhiteFideId "14110180"]
[BlackFideId "109860"]
[WhiteElo "2329"]
[BlackElo "2195"]
[Result "1-0"]
[Round "10"]
[TimeControl "180+2"]
[Date "2022.12.27"]
[WhiteClock "0:00:23"]
[BlackClock "0:00:55"]

1. e4 {[%clk 0:02:55]}  e6 {[%clk 0:02:59]} 2. d4 {[%clk 0:02:54]}  d5 {[%clk 0:02:59]} 3. Nd2 {[%clk 0:02:54]}  Nf6 {[%clk 0:02:58]} 4. Bd3 {[%clk 0:02:49]}  Nc6 {[%clk 0:02:46]} 5. c3 {[%clk 0:02:48]}  e5 {[%clk 0:02:44]} 6. Ngf3 {[%clk 0:02:46]}  exd4 {[%clk 0:02:42]} 7. cxd4 {[%clk 0:02:47]}  dxe4 {[%clk 0:02:42]} 8. Nxe4 {[%clk 0:02:46]}  Nxe4 {[%clk 0:02:41]} 9. Bxe4 {[%clk 0:02:46]}  Bb4+ {[%clk 0:02:41]} 10. Bd2 {[%clk 0:02:45]}  Bxd2+ {[%clk 0:02:32]} 11. Qxd2 {[%clk 0:02:44]}  O-O {[%clk 0:02:29]} 12. O-O {[%clk 0:02:44]}  Bg4 {[%clk 0:02:26]} 13. Rad1 {[%clk 0:02:42]}  Bxf3 {[%clk 0:02:21]} 14. Bxf3 {[%clk 0:02:40]}  Qd6 {[%clk 0:02:22]} 15. Qc3 {[%clk 0:02:37]}  Rad8 {[%clk 0:02:19]} 16. Bxc6 {[%clk 0:02:29]}  Qxc6 {[%clk 0:02:18]} 17. Qxc6 {[%clk 0:02:25]}  bxc6 {[%clk 0:02:14]} 18. f3 {[%clk 0:02:24]}  Rd6 {[%clk 0:02:13]} 19. Kf2 {[%clk 0:02:23]}  Rfd8 {[%clk 0:02:13]} 20. Ke3 {[%clk 0:02:24]}  c5 {[%clk 0:02:11]} 21. d5 {[%clk 0:02:18]}  Rxd5 {[%clk 0:02:09]} 22. Rxd5 {[%clk 0:02:19]}  Rxd5 {[%clk 0:02:09]} 23. Rc1 {[%clk 0:02:18]}  f6 {[%clk 0:02:09]} 24. Rc2 {[%clk 0:02:14]}  Kf7 {[%clk 0:02:09]} 25. Rc3 {[%clk 0:02:14]}  Ke6 {[%clk 0:02:08]} 26. Ra3 {[%clk 0:02:15]}  Re5+ {[%clk 0:02:06]} 27. Kd2 {[%clk 0:02:10]}  Rd5+ {[%clk 0:02:06]} 28. Kc3 {[%clk 0:02:05]}  Re5 {[%clk 0:02:06]} 29. Rxa7 {[%clk 0:02:05]}  Kd6 {[%clk 0:02:01]} 30. Ra6+ {[%clk 0:01:59]}  Kd7 {[%clk 0:01:57]} 31. Ra4 {[%clk 0:01:52]}  Re2 {[%clk 0:01:55]} 32. Rg4 {[%clk 0:01:49]}  g6 {[%clk 0:01:56]} 33. Rh4 {[%clk 0:01:46]}  h5 {[%clk 0:01:56]} 34. g4 {[%clk 0:01:45]}  hxg4 {[%clk 0:01:54]} 35. Rxg4 {[%clk 0:01:42]}  g5 {[%clk 0:01:46]} 36. f4 {[%clk 0:01:39]}  Re4 {[%clk 0:01:46]} 37. Kd3 {[%clk 0:01:35]}  Rb4 {[%clk 0:01:36]} 38. b3 {[%clk 0:01:33]}  gxf4 {[%clk 0:01:35]} 39. h4 {[%clk 0:01:32]}  Ke6 {[%clk 0:01:30]} 40. h5 {[%clk 0:01:28]}  Kf5 {[%clk 0:01:27]} 41. Rg7 {[%clk 0:01:27]}  Rd4+ {[%clk 0:01:25]} 42. Ke2 {[%clk 0:01:26]}  Re4+ {[%clk 0:01:24]} 43. Kf2 {[%clk 0:01:21]}  Rd4 {[%clk 0:01:23]} 44. h6 {[%clk 0:01:11]}  Rd2+ {[%clk 0:01:23]} 45. Kg1 {[%clk 0:01:11]}  Rd1+ {[%clk 0:01:19]} 46. Kh2 {[%clk 0:01:00]}  Rd2+ {[%clk 0:01:17]} 47. Rg2 {[%clk 0:01:00]}  Rd8 {[%clk 0:01:16]} 48. h7 {[%clk 0:00:53]}  Rh8 {[%clk 0:01:16]} 49. Rg7 {[%clk 0:00:53]}  Ke4 {[%clk 0:01:13]} 50. a4 {[%clk 0:00:45]}  Ke3 {[%clk 0:01:08]} 51. a5 {[%clk 0:00:42]}  f3 {[%clk 0:01:09]} 52. Kg3 {[%clk 0:00:42]}  f2 {[%clk 0:00:58]} 53. Re7+ {[%clk 0:00:40]}  Kd3 {[%clk 0:00:58]} 54. Kxf2 {[%clk 0:00:40]}  Kc3 {[%clk 0:00:58]} 55. a6 {[%clk 0:00:38]}  Kxb3 {[%clk 0:00:58]} 56. Rxc7 {[%clk 0:00:23]}  c4 {[%clk 0:00:57]} 57. a7 {[%clk 0:00:23]}  c3 {[%clk 0:00:58]} 58. Rb7+ {[%clk 0:00:23]}  Kc2 {[%clk 0:00:56]} 59. Rb8 {[%clk 0:00:21]}  Rxh7 {[%clk 0:00:56]} 60. a8=Q {[%clk 0:00:22]}  Rh2+ {[%clk 0:00:56]} 61. Kg3 {[%clk 0:00:22]}  Rd2 {[%clk 0:00:55]} 62. Qa2+ {[%clk 0:00:22]}  Kd1 {[%clk 0:00:56]} 63. Qb1+ {[%clk 0:00:22]}  Ke2 {[%clk 0:00:55]} 64. Re8# {[%clk 0:00:23]} 1-0


[Site "https://www.chess.com"]

[Event "Titled Tuesday Blitz December 27 Early 2022"]
[White "Jiganchine, Roman"]
[Black "Petrovic, Aleksa"]
[WhiteFideId "2603667"]
[BlackFideId "967629"]
[WhiteElo "2205"]
[BlackElo "2332"]
[Result "0-1"]
[Round "10"]
[TimeControl "180+2"]
[Date "2022.12.27"]
[WhiteClock "0:00:17"]
[BlackClock "0:00:17"]

1. e4 {[%clk 0:03:00]}  c6 {[%clk 0:02:57]} 2. d4 {[%clk 0:02:44]}  d5 {[%clk 0:02:56]} 3. exd5 {[%clk 0:02:44]}  cxd5 {[%clk 0:02:55]} 4. Nf3 {[%clk 0:02:44]}  Nc6 {[%clk 0:02:54]} 5. Bd3 {[%clk 0:02:41]}  Bg4 {[%clk 0:02:53]} 6. c3 {[%clk 0:02:35]}  Nf6 {[%clk 0:02:51]} 7. Qb3 {[%clk 0:02:34]}  Qc7 {[%clk 0:02:47]} 8. Na3 {[%clk 0:02:26]}  a6 {[%clk 0:02:42]} 9. Ne5 {[%clk 0:02:21]}  Nxe5 {[%clk 0:02:29]} 10. dxe5 {[%clk 0:02:21]}  Qxe5+ {[%clk 0:02:30]} 11. Be3 {[%clk 0:02:21]}  Qc7 {[%clk 0:02:26]} 12. c4 {[%clk 0:02:15]}  e6 {[%clk 0:02:21]} 13. O-O {[%clk 0:02:13]}  Bd6 {[%clk 0:02:07]} 14. cxd5 {[%clk 0:02:07]}  Nxd5 {[%clk 0:01:50]} 15. Rac1 {[%clk 0:02:07]}  Qd7 {[%clk 0:01:42]} 16. Nc4 {[%clk 0:01:58]}  O-O {[%clk 0:01:37]} 17. Nxd6 {[%clk 0:01:55]}  Nxe3 {[%clk 0:01:27]} 18. fxe3 {[%clk 0:01:24]}  Qxd6 {[%clk 0:01:26]} 19. Be4 {[%clk 0:01:24]}  Rab8 {[%clk 0:00:54]} 20. h3 {[%clk 0:01:24]}  Be2 {[%clk 0:00:52]} 21. Rf2 {[%clk 0:01:15]}  Bb5 {[%clk 0:00:44]} 22. a4 {[%clk 0:01:15]}  Bc6 {[%clk 0:00:43]} 23. Rd1 {[%clk 0:01:10]}  Qe5 {[%clk 0:00:35]} 24. Bxc6 {[%clk 0:00:49]}  bxc6 {[%clk 0:00:36]} 25. Qc3 {[%clk 0:00:49]}  Qxc3 {[%clk 0:00:35]} 26. bxc3 {[%clk 0:00:49]}  Rb3 {[%clk 0:00:35]} 27. Rd7 {[%clk 0:00:41]}  Rxc3 {[%clk 0:00:34]} 28. Ra7 {[%clk 0:00:41]}  Rxe3 {[%clk 0:00:32]} 29. Rxa6 {[%clk 0:00:40]}  Ra3 {[%clk 0:00:32]} 30. Rc2 {[%clk 0:00:36]}  Rd8 {[%clk 0:00:28]} 31. Rd2 {[%clk 0:00:29]}  Re8 {[%clk 0:00:20]} 32. Rc2 {[%clk 0:00:29]}  h5 {[%clk 0:00:19]} 33. Rcxc6 {[%clk 0:00:26]}  Rd8 {[%clk 0:00:19]} 34. Ra7 {[%clk 0:00:20]}  Rd1+ {[%clk 0:00:18]} 35. Kh2 {[%clk 0:00:19]}  h4 {[%clk 0:00:18]} 36. Rcc7 {[%clk 0:00:19]}  Raa1 {[%clk 0:00:18]} 37. g4 {[%clk 0:00:17]}  Rd2# {[%clk 0:00:17]} 0-1


[Site "https://www.chess.com"]

[Event "Titled Tuesday Blitz December 27 Early 2022"]
[White "Jimenez Almeida, Luis David"]
[Black "Yaran, Siar"]
[WhiteFideId "22242244"]
[BlackFideId "6323006"]
[WhiteElo "2242"]
[BlackElo "2288"]
[Result "1-0"]
[Round "10"]
[TimeControl "180+2"]
[Date "2022.12.27"]
[WhiteClock "0:00:12"]
[BlackClock "0:00:03"]

1. e4 {[%clk 0:03:00]}  e5 {[%clk 0:03:00]} 2. Nf3 {[%clk 0:03:00]}  Nc6 {[%clk 0:03:00]} 3. Bb5 {[%clk 0:03:01]}  a6 {[%clk 0:03:01]} 4. Ba4 {[%clk 0:03:00]}  Nf6 {[%clk 0:03:01]} 5. O-O {[%clk 0:03:01]}  Be7 {[%clk 0:03:01]} 6. Re1 {[%clk 0:03:01]}  b5 {[%clk 0:03:01]} 7. Bb3 {[%clk 0:03:01]}  O-O {[%clk 0:03:02]} 8. c3 {[%clk 0:03:01]}  d5 {[%clk 0:03:02]} 9. exd5 {[%clk 0:03:01]}  e4 {[%clk 0:03:03]} 10. Ng5 {[%clk 0:02:44]}  Bg4 {[%clk 0:02:37]} 11. f3 {[%clk 0:02:42]}  exf3 {[%clk 0:02:37]} 12. gxf3 {[%clk 0:02:42]}  Nxd5 {[%clk 0:02:37]} 13. Nxh7 {[%clk 0:02:30]}  Bf5 {[%clk 0:02:07]} 14. Nxf8 {[%clk 0:02:27]}  Bd3 {[%clk 0:02:06]} 15. Bc2 {[%clk 0:01:59]}  Bc5+ {[%clk 0:01:55]} 16. Kh1 {[%clk 0:01:51]}  Nf4 {[%clk 0:01:51]} 17. Re4 {[%clk 0:01:37]}  Nh3 {[%clk 0:01:31]} 18. Kg2 {[%clk 0:01:06]}  Nf2 {[%clk 0:01:25]} 19. Qe1 {[%clk 0:01:04]}  Nxe4 {[%clk 0:00:31]} 20. Bxd3 {[%clk 0:00:39]}  Qg5+ {[%clk 0:00:28]} 21. Kf1 {[%clk 0:00:39]}  Qg1+ {[%clk 0:00:21]} 22. Ke2 {[%clk 0:00:39]}  Qg2+ {[%clk 0:00:20]} 23. Kd1 {[%clk 0:00:39]}  Nf2+ {[%clk 0:00:18]} 24. Kc2 {[%clk 0:00:38]}  Nxd3 {[%clk 0:00:18]} 25. Kxd3 {[%clk 0:00:36]}  Rxf8 {[%clk 0:00:17]} 26. Qe4 {[%clk 0:00:34]}  Rd8+ {[%clk 0:00:11]} 27. Kc2 {[%clk 0:00:35]}  Rd6 {[%clk 0:00:09]} 28. b4 {[%clk 0:00:35]}  Bb6 {[%clk 0:00:06]} 29. a4 {[%clk 0:00:35]}  Re6 {[%clk 0:00:07]} 30. Qd3 {[%clk 0:00:34]}  Ne5 {[%clk 0:00:06]} 31. Qd8+ {[%clk 0:00:32]}  Kh7 {[%clk 0:00:06]} 32. axb5 {[%clk 0:00:30]}  Qg6+ {[%clk 0:00:05]} 33. Kb2 {[%clk 0:00:27]}  Nd3+ {[%clk 0:00:04]} 34. Kc2 {[%clk 0:00:25]}  Ne1+ {[%clk 0:00:02]} 35. Kb3 {[%clk 0:00:22]}  Qc2+ {[%clk 0:00:03]} 36. Kc4 {[%clk 0:00:21]}  axb5+ {[%clk 0:00:03]} 37. Kxb5 {[%clk 0:00:21]}  Qxc1 {[%clk 0:00:03]} 38. Qh4+ {[%clk 0:00:15]}  Kg6 {[%clk 0:00:03]} 39. Qg4+ {[%clk 0:00:15]}  Kf6 {[%clk 0:00:03]} 40. Qh4+ {[%clk 0:00:14]}  g5 {[%clk 0:00:03]} 41. Qh6+ {[%clk 0:00:13]}  Ke7 {[%clk 0:00:03]} 42. Qxg5+ {[%clk 0:00:14]}  Kd7 {[%clk 0:00:03]} 43. Ra8 {[%clk 0:00:12]} 1-0


[Site "https://www.chess.com"]

[Event "Titled Tuesday Blitz December 27 Early 2022"]
[White "Kabanov, Nikolai"]
[Black "Ilkhomi, Jaloliddin"]
[WhiteFideId "4127820"]
[BlackFideId "14700948"]
[WhiteElo "2429"]
[BlackElo "1997"]
[Result "1-0"]
[Round "10"]
[TimeControl "180+2"]
[Date "2022.12.27"]
[WhiteClock "0:00:35"]
[BlackClock "0:00:05"]

1. e4 {[%clk 0:03:00]}  e6 {[%clk 0:03:00]} 2. Nf3 {[%clk 0:02:59]}  d5 {[%clk 0:02:59]} 3. exd5 {[%clk 0:03:00]}  exd5 {[%clk 0:02:59]} 4. d4 {[%clk 0:03:00]}  Bd6 {[%clk 0:02:59]} 5. Bd3 {[%clk 0:02:59]}  Ne7 {[%clk 0:02:59]} 6. O-O {[%clk 0:02:57]}  O-O {[%clk 0:02:58]} 7. Bg5 {[%clk 0:02:53]}  f6 {[%clk 0:02:58]} 8. Bh4 {[%clk 0:02:52]}  Nbc6 {[%clk 0:02:59]} 9. c3 {[%clk 0:02:48]}  Bf5 {[%clk 0:02:58]} 10. Bb5 {[%clk 0:02:45]}  a6 {[%clk 0:02:48]} 11. Ba4 {[%clk 0:02:44]}  Qd7 {[%clk 0:02:46]} 12. Nbd2 {[%clk 0:02:42]}  Rae8 {[%clk 0:02:43]} 13. Re1 {[%clk 0:02:42]}  Ng6 {[%clk 0:02:42]} 14. Bg3 {[%clk 0:02:41]}  Bxg3 {[%clk 0:02:40]} 15. hxg3 {[%clk 0:02:39]}  Rxe1+ {[%clk 0:02:40]} 16. Nxe1 {[%clk 0:02:35]}  Re8 {[%clk 0:02:41]} 17. Nf1 {[%clk 0:02:34]}  b5 {[%clk 0:02:34]} 18. Bb3 {[%clk 0:02:30]}  Na5 {[%clk 0:02:25]} 19. Ne3 {[%clk 0:02:30]}  Be6 {[%clk 0:02:14]} 20. Nd3 {[%clk 0:02:27]}  Nb7 {[%clk 0:02:05]} 21. Nb4 {[%clk 0:02:16]}  a5 {[%clk 0:01:22]} 22. Nd3 {[%clk 0:02:13]}  a4 {[%clk 0:01:19]} 23. Bc2 {[%clk 0:02:13]}  Ne7 {[%clk 0:01:16]} 24. b3 {[%clk 0:02:10]}  axb3 {[%clk 0:01:09]} 25. axb3 {[%clk 0:02:06]}  Nf5 {[%clk 0:01:09]} 26. Nf1 {[%clk 0:01:56]}  Nfd6 {[%clk 0:01:05]} 27. f3 {[%clk 0:01:53]}  Bf5 {[%clk 0:01:04]} 28. Ra7 {[%clk 0:01:50]}  Qc6 {[%clk 0:00:41]} 29. Qa1 {[%clk 0:01:48]}  Bxd3 {[%clk 0:00:27]} 30. Bxd3 {[%clk 0:01:47]}  b4 {[%clk 0:00:26]} 31. cxb4 {[%clk 0:01:40]}  Qb6 {[%clk 0:00:21]} 32. Ra4 {[%clk 0:01:25]}  Nb5 {[%clk 0:00:19]} 33. Ra6 {[%clk 0:01:20]}  Qxd4+ {[%clk 0:00:17]} 34. Qxd4 {[%clk 0:01:19]}  Nxd4 {[%clk 0:00:18]} 35. Ra7 {[%clk 0:01:18]}  Rb8 {[%clk 0:00:16]} 36. Ba6 {[%clk 0:01:13]}  Nd6 {[%clk 0:00:17]} 37. Rxc7 {[%clk 0:01:13]}  Rxb4 {[%clk 0:00:17]} 38. Ne3 {[%clk 0:01:08]}  N6f5 {[%clk 0:00:10]} 39. Nxd5 {[%clk 0:01:04]}  Rxb3 {[%clk 0:00:09]} 40. g4 {[%clk 0:01:01]}  Rb1+ {[%clk 0:00:09]} 41. Kh2 {[%clk 0:00:58]}  Ne3 {[%clk 0:00:09]} 42. Nxe3 {[%clk 0:00:56]}  Re1 {[%clk 0:00:06]} 43. Bc4+ {[%clk 0:00:51]}  Kf8 {[%clk 0:00:06]} 44. Nf5 {[%clk 0:00:50]}  Nxf5 {[%clk 0:00:03]} 45. gxf5 {[%clk 0:00:51]}  Rc1 {[%clk 0:00:02]} 46. Rc8+ {[%clk 0:00:46]}  Ke7 {[%clk 0:00:02]} 47. Be6 {[%clk 0:00:47]}  Rd1 {[%clk 0:00:02]} 48. Rc7+ {[%clk 0:00:46]}  Kf8 {[%clk 0:00:02]} 49. Rf7+ {[%clk 0:00:46]}  Ke8 {[%clk 0:00:03]} 50. Rxg7 {[%clk 0:00:46]}  h5 {[%clk 0:00:04]} 51. Kg3 {[%clk 0:00:44]}  Rd4 {[%clk 0:00:03]} 52. Rh7 {[%clk 0:00:43]}  Kf8 {[%clk 0:00:04]} 53. Rxh5 {[%clk 0:00:43]}  Kg7 {[%clk 0:00:04]} 54. Rh4 {[%clk 0:00:42]}  Rd2 {[%clk 0:00:05]} 55. Rg4+ {[%clk 0:00:42]}  Kh6 {[%clk 0:00:06]} 56. Rg8 {[%clk 0:00:41]}  Kh7 {[%clk 0:00:06]} 57. Kf4 {[%clk 0:00:38]}  Rd4+ {[%clk 0:00:05]} 58. Ke3 {[%clk 0:00:38]}  Ra4 {[%clk 0:00:05]} 59. Rg6 {[%clk 0:00:38]}  Kh8 {[%clk 0:00:03]} 60. g4 {[%clk 0:00:37]}  Kh7 {[%clk 0:00:04]} 61. Rxf6 {[%clk 0:00:37]}  Kg7 {[%clk 0:00:04]} 62. Rg6+ {[%clk 0:00:37]}  Kh7 {[%clk 0:00:05]} 63. g5 {[%clk 0:00:35]}  Ra3+ {[%clk 0:00:04]} 64. Kf4 {[%clk 0:00:34]}  Ra4+ {[%clk 0:00:05]} 65. Kg3 {[%clk 0:00:35]}  Ra3 {[%clk 0:00:05]} 66. Rh6+ {[%clk 0:00:34]}  Kg7 {[%clk 0:00:05]} 67. f6+ {[%clk 0:00:34]}  Kf8 {[%clk 0:00:05]} 68. Rh8# {[%clk 0:00:35]} 1-0


[Site "https://www.chess.com"]

[Event "Titled Tuesday Blitz December 27 Early 2022"]
[White "Kilic, Eray"]
[Black "Alex_Sahakyan2006"]
[WhiteFideId "44517173"]
[WhiteElo "2414"]
[BlackElo "2629"]
[Result "0-1"]
[Round "10"]
[TimeControl "180+2"]
[Date "2022.12.27"]
[WhiteClock "0:00:06"]
[BlackClock "0:00:13"]

1. e4 {[%clk 0:03:00]}  d5 {[%clk 0:02:58]} 2. exd5 {[%clk 0:03:00]}  Qxd5 {[%clk 0:02:59]} 3. Nc3 {[%clk 0:03:01]}  Qd8 {[%clk 0:02:59]} 4. Nf3 {[%clk 0:03:01]}  Nf6 {[%clk 0:03:00]} 5. d4 {[%clk 0:03:00]}  Bf5 {[%clk 0:03:00]} 6. Bd3 {[%clk 0:03:00]}  Bxd3 {[%clk 0:02:59]} 7. Qxd3 {[%clk 0:03:01]}  c6 {[%clk 0:03:00]} 8. O-O {[%clk 0:03:01]}  e6 {[%clk 0:03:00]} 9. Re1 {[%clk 0:03:00]}  Be7 {[%clk 0:03:01]} 10. Bg5 {[%clk 0:03:00]}  O-O {[%clk 0:03:01]} 11. Bxf6 {[%clk 0:02:58]}  Bxf6 {[%clk 0:03:02]} 12. Ne4 {[%clk 0:02:58]}  Be7 {[%clk 0:03:01]} 13. c4 {[%clk 0:02:57]}  Nd7 {[%clk 0:03:00]} 14. Rad1 {[%clk 0:02:56]}  Nf6 {[%clk 0:02:58]} 15. Ng3 {[%clk 0:02:53]}  Qa5 {[%clk 0:02:55]} 16. a3 {[%clk 0:02:52]}  Rfd8 {[%clk 0:02:54]} 17. Qb3 {[%clk 0:02:42]}  Qc7 {[%clk 0:02:50]} 18. h3 {[%clk 0:02:37]}  Bf8 {[%clk 0:02:46]} 19. Qc2 {[%clk 0:02:35]}  c5 {[%clk 0:02:43]} 20. dxc5 {[%clk 0:02:25]}  Bxc5 {[%clk 0:02:44]} 21. Ne4 {[%clk 0:02:22]}  Nxe4 {[%clk 0:02:41]} 22. Qxe4 {[%clk 0:02:23]}  Qb6 {[%clk 0:02:23]} 23. Qe2 {[%clk 0:02:12]}  a5 {[%clk 0:02:13]} 24. Ng5 {[%clk 0:01:54]}  h6 {[%clk 0:02:06]} 25. Ne4 {[%clk 0:01:52]}  Bd4 {[%clk 0:02:05]} 26. Rb1 {[%clk 0:01:48]}  Qb3 {[%clk 0:01:58]} 27. Nd2 {[%clk 0:01:41]}  Qc2 {[%clk 0:01:55]} 28. Nf3 {[%clk 0:01:39]}  Qxe2 {[%clk 0:01:52]} 29. Rxe2 {[%clk 0:01:39]}  Bf6 {[%clk 0:01:52]} 30. b4 {[%clk 0:01:37]}  a4 {[%clk 0:01:43]} 31. Re3 {[%clk 0:01:28]}  Rd7 {[%clk 0:01:41]} 32. c5 {[%clk 0:01:20]}  Rad8 {[%clk 0:01:40]} 33. Kf1 {[%clk 0:00:24]}  Rd1+ {[%clk 0:01:30]} 34. Rxd1 {[%clk 0:00:23]}  Rxd1+ {[%clk 0:01:31]} 35. Ke2 {[%clk 0:00:24]}  Ra1 {[%clk 0:01:27]} 36. Nd2 {[%clk 0:00:16]}  Ra2 {[%clk 0:01:25]} 37. Rd3 {[%clk 0:00:14]}  Bg5 {[%clk 0:01:25]} 38. b5 {[%clk 0:00:12]}  Rb2 {[%clk 0:01:19]} 39. c6 {[%clk 0:00:10]}  bxc6 {[%clk 0:01:17]} 40. bxc6 {[%clk 0:00:11]}  Rc2 {[%clk 0:01:17]} 41. h4 {[%clk 0:00:05]}  Bxh4 {[%clk 0:00:53]} 42. Rd4 {[%clk 0:00:06]}  Be7 {[%clk 0:00:45]} 43. Rc4 {[%clk 0:00:06]}  Rxc4 {[%clk 0:00:37]} 44. Nxc4 {[%clk 0:00:07]}  Bd8 {[%clk 0:00:37]} 45. Kd3 {[%clk 0:00:07]}  Kf8 {[%clk 0:00:36]} 46. Kc3 {[%clk 0:00:08]}  h5 {[%clk 0:00:29]} 47. Kb4 {[%clk 0:00:09]}  g5 {[%clk 0:00:28]} 48. Kc5 {[%clk 0:00:08]}  Bc7 {[%clk 0:00:23]} 49. Kb5 {[%clk 0:00:08]}  h4 {[%clk 0:00:21]} 50. Ne3 {[%clk 0:00:08]}  f5 {[%clk 0:00:21]} 51. Ka6 {[%clk 0:00:09]}  Ke7 {[%clk 0:00:21]} 52. Kb7 {[%clk 0:00:09]}  Kd8 {[%clk 0:00:21]} 53. f3 {[%clk 0:00:08]}  Bf4 {[%clk 0:00:17]} 54. Nf1 {[%clk 0:00:08]}  g4 {[%clk 0:00:17]} 55. fxg4 {[%clk 0:00:08]}  fxg4 {[%clk 0:00:18]} 56. Ne3 {[%clk 0:00:06]}  h3 {[%clk 0:00:16]} 57. gxh3 {[%clk 0:00:05]}  gxh3 {[%clk 0:00:17]} 58. Ng4 {[%clk 0:00:03]}  h2 {[%clk 0:00:16]} 59. Nf2 {[%clk 0:00:04]}  Bd6 {[%clk 0:00:15]} 60. Nh1 {[%clk 0:00:04]}  e5 {[%clk 0:00:14]} 61. Kb6 {[%clk 0:00:05]}  e4 {[%clk 0:00:13]} 62. Kb5 {[%clk 0:00:06]}  e3 {[%clk 0:00:13]} 0-1


[Site "https://www.chess.com"]

[Event "Titled Tuesday Blitz December 27 Early 2022"]
[White "Kvaloy, Aksel Bu"]
[Black "Bringas Gomez, Artai"]
[WhiteFideId "1528815"]
[BlackFideId "24534064"]
[WhiteElo "2321"]
[BlackElo "2206"]
[Result "1-0"]
[Round "10"]
[TimeControl "180+2"]
[Date "2022.12.27"]
[WhiteClock "0:01:07"]
[BlackClock "0:00:03"]

1. d4 {[%clk 0:03:00]}  d5 {[%clk 0:03:00]} 2. c4 {[%clk 0:03:01]}  c6 {[%clk 0:03:00]} 3. Nf3 {[%clk 0:03:01]}  e6 {[%clk 0:03:00]} 4. g3 {[%clk 0:03:00]}  Nf6 {[%clk 0:02:58]} 5. Bg2 {[%clk 0:03:00]}  Bd6 {[%clk 0:02:59]} 6. O-O {[%clk 0:03:00]}  O-O {[%clk 0:02:59]} 7. Qc2 {[%clk 0:03:00]}  Nbd7 {[%clk 0:02:59]} 8. Nc3 {[%clk 0:03:00]}  dxc4 {[%clk 0:02:51]} 9. Nd2 {[%clk 0:03:00]}  Nb6 {[%clk 0:02:47]} 10. Nce4 {[%clk 0:02:54]}  Be7 {[%clk 0:02:46]} 11. e3 {[%clk 0:02:51]}  Qc7 {[%clk 0:02:14]} 12. Nxc4 {[%clk 0:02:42]}  Nxc4 {[%clk 0:02:13]} 13. Qxc4 {[%clk 0:02:43]}  Nd5 {[%clk 0:01:59]} 14. b3 {[%clk 0:02:38]}  e5 {[%clk 0:01:59]} 15. Bb2 {[%clk 0:02:36]}  Be6 {[%clk 0:01:56]} 16. Qc2 {[%clk 0:02:33]}  Nb4 {[%clk 0:01:55]} 17. Qe2 {[%clk 0:02:32]}  exd4 {[%clk 0:01:51]} 18. Bxd4 {[%clk 0:02:33]}  c5 {[%clk 0:01:51]} 19. Bb2 {[%clk 0:02:32]}  c4 {[%clk 0:01:50]} 20. Rac1 {[%clk 0:02:27]}  Rac8 {[%clk 0:01:45]} 21. bxc4 {[%clk 0:02:17]}  Bxc4 {[%clk 0:01:43]} 22. Qg4 {[%clk 0:02:17]}  f6 {[%clk 0:01:35]} 23. Rfd1 {[%clk 0:02:10]}  h5 {[%clk 0:00:35]} 24. Qxh5 {[%clk 0:02:06]}  Rfd8 {[%clk 0:00:32]} 25. Rxd8+ {[%clk 0:02:01]}  Rxd8 {[%clk 0:00:33]} 26. Nxf6+ {[%clk 0:01:53]}  Bxf6 {[%clk 0:00:32]} 27. Bxf6 {[%clk 0:01:52]}  Nd3 {[%clk 0:00:25]} 28. Rc3 {[%clk 0:01:33]}  Rf8 {[%clk 0:00:16]} 29. Bxg7 {[%clk 0:01:24]}  Qxg7 {[%clk 0:00:14]} 30. Rxc4 {[%clk 0:01:22]}  Qa1+ {[%clk 0:00:13]} 31. Bf1 {[%clk 0:01:21]}  Ne5 {[%clk 0:00:12]} 32. Qg5+ {[%clk 0:01:18]}  Kf7 {[%clk 0:00:12]} 33. Rf4+ {[%clk 0:01:18]}  Ke8 {[%clk 0:00:11]} 34. Re4 {[%clk 0:01:13]}  Kd7 {[%clk 0:00:05]} 35. Qxe5 {[%clk 0:01:12]}  Rxf2 {[%clk 0:00:03]} 36. Qd5+ {[%clk 0:01:10]}  Kc7 {[%clk 0:00:03]} 37. Rc4+ {[%clk 0:01:07]}  Kb6 {[%clk 0:00:03]} 38. Qc5+ {[%clk 0:01:07]}  Ka6 {[%clk 0:00:03]} 39. Ra4# {[%clk 0:01:07]} 1-0


[Site "https://www.chess.com"]